bitfinex/quotes_BTCUSD_20220304
["timestamp","ask_amount","ask_price","bid_price","bid_amount"]
[1646403643185,0.24,41201.0,41190.0,0.11071727]
[1646403643431,0.28185892,41200.0,41190.0,0.11071727]
[1646403644031,0.28185892,41200.0,41195.0,0.06072]
[1646403644230,0.24,41201.0,41195.0,0.06072]
[1646403645333,0.24,41201.0,41196.0,0.242822]
[1646403645529,0.24,41201.0,41198.0,0.12141]
[1646403645732,0.235,41201.0,41198.0,0.18211495]
[1646403646533,0.235,41201.0,41199.0,0.617004]
[1646403646737,0.05,41211.0,41203.0,0.121395]
[1646403646936,0.05,41211.0,41206.0,0.06069539]
[1646403647184,0.01,41219.0,41207.0,0.3]
[1646403647384,0.01,41219.0,41207.0,0.35]
[1646403647582,0.26995577,41215.0,41207.0,0.05]
[1646403648081,0.26995577,41215.0,41209.0,0.060691]
[1646403648281,0.01,41219.0,41209.0,0.12138162]
[1646403648485,0.01,41219.0,41214.0,0.02423]
[1646403648786,0.01,41219.0,41215.0,0.366947]
[1646403649183,0.02995858,41221.0,41216.0,1.25]
[1646403649583,0.02995858,41221.0,41215.0,0.07423]
[1646403649785,0.23589203,41227.0,41219.0,1.42423]
[1646403649786,0.001,41227.0,41219.0,1.42423]
[1646403649994,0.01,41249.0,41224.0,0.02423]
[1646403649995,0.05,41238.0,41224.0,0.02423]
[1646403650186,0.05,41238.0,41228.0,0.03802538]
[1646403650388,0.05,41238.0,41229.0,0.06064484]
[1646403650584,0.75993,41245.0,41227.0,0.0106131]
[1646403650829,0.75993,41245.0,41224.0,0.12132179]
[1646403651231,0.75993,41245.0,41230.0,0.121333]
[1646403651232,0.7652225,41240.0,41230.0,0.121333]
[1646403651429,0.31006153,41231.0,41230.0,0.121333]
[1646403652536,0.31006153,41231.0,41226.0,0.121345]
[1646403652537,0.41006153,41231.0,41226.0,0.121345]
[1646403652731,0.1,41230.0,41226.0,0.121345]
[1646403652929,0.1,41230.0,41217.0,0.06067634]
[1646403653129,0.1,41230.0,41218.0,0.060679]
[1646403653332,0.1,41230.0,41219.0,0.121359]
[1646403653531,0.1,41230.0,41220.0,0.06067433]
[1646403654030,0.24,41231.0,41223.0,0.060672]
[1646403654230,0.24,41231.0,41223.0,0.110672]
[1646403654433,0.24,41231.0,41224.0,0.366947]
[1646403654682,0.24,41231.0,41224.0,0.37745669]
[1646403654885,0.24,41231.0,41225.0,0.02423]
[1646403655185,0.24,41231.0,41228.0,0.366947]
[1646403655384,0.24,41231.0,41229.0,0.060651]
[1646403655583,0.24,41231.0,41230.0,0.366947]
[1646403655781,0.24,41231.0,41230.0,0.1]
[1646403655982,0.0295225,41240.0,41231.0,1.27289782]
[1646403656185,0.01,41249.0,41233.0,0.391177]
[1646403656383,0.01,41249.0,41236.0,0.060635]
[1646403656581,0.01,41249.0,41236.0,0.05]
[1646403656782,0.05526292,41244.0,41236.0,0.05]
[1646403656983,0.24354958,41248.0,41236.0,0.05]
[1646403657182,0.28578625,41237.0,41228.0,0.02423]
[1646403657383,0.28578625,41237.0,41229.0,0.366947]
[1646403657584,0.28578625,41237.0,41232.0,0.06065153]
[1646403657790,0.28578625,41237.0,41222.0,0.3]
[1646403658084,0.28578625,41237.0,41218.0,0.02423]
[1646403658330,0.28578625,41237.0,41222.0,0.121333]
[1646403658533,0.18080129,41236.0,41222.0,0.121333]
[1646403658828,0.28080129,41236.0,41226.0,0.0606652]
[1646403659029,0.28578625,41237.0,41227.0,0.12132]
[1646403659428,0.28578625,41237.0,41228.0,0.060661]
[1646403659829,0.28578625,41237.0,41227.0,0.17132]
[1646403660233,0.07239161,41236.0,41225.0,0.05]
[1646403660433,0.28578625,41237.0,41224.0,0.060671]
[1646403660628,0.1,41236.0,41225.0,0.05]
[1646403660831,0.1,41236.0,41215.0,0.25]
[1646403660832,0.45,41236.0,41215.0,0.25]
[1646403661034,0.22143602,41223.0,41215.0,0.25]
[1646403661235,0.3,41222.0,41215.0,0.25]
[1646403661431,0.06192589,41217.0,41215.0,0.25]
[1646403661630,0.4,41222.0,41215.0,0.25]
[1646403661930,0.1,41222.0,41215.0,0.25]
[1646403662677,0.1,41222.0,41216.0,0.06068]
[1646403662879,0.22143602,41223.0,41215.0,0.25]
[1646403663183,0.92104704,41225.0,41224.0,0.3087496]
[1646403663378,1.06104704,41225.0,41224.0,0.3087496]
[1646403663780,1.79674704,41225.0,41224.0,0.3087496]
[1646403665078,2.02674704,41225.0,41224.0,0.3087496]
[1646403665479,1.88674704,41225.0,41224.0,0.3087496]
[1646403665682,1.68143907,41225.0,41224.0,0.3087496]
[1646403665938,0.94573907,41225.0,41224.0,0.3087496]
[1646403666540,0.23,41225.0,41224.0,0.3087496]
[1646403668842,0.23,41225.0,41224.0,0.7756966]
[1646403669599,0.23,41225.0,41224.0,0.4087496]
[1646403669806,0.23,41225.0,41224.0,0.7756966]
[1646403670000,0.05,41232.0,41226.0,0.060654]
[1646403670203,0.3,41246.0,41232.0,0.06064952]
[1646403670401,0.4998,41250.0,41234.0,0.121291]
[1646403670402,0.01,41249.0,41234.0,0.121291]
[1646403670600,0.31,41249.0,41234.0,0.121291]
[1646403670805,0.31,41249.0,41235.0,0.05]
[1646403670806,0.49999398,41237.0,41235.0,0.05]
[1646403671002,0.26163425,41237.0,41235.0,0.05]
[1646403671305,0.26163425,41237.0,41225.0,2.53546466]
[1646403671500,0.35,41246.0,41226.0,0.02423]
[1646403671703,0.4,41245.0,41234.0,0.05]
[1646403671901,0.4,41245.0,41236.0,0.06065499]
[1646403671902,0.1,41245.0,41236.0,0.06065499]
[1646403672300,0.1,41245.0,41234.0,0.05]
[1646403672301,0.25,41253.0,41234.0,0.05]
[1646403672501,0.31934457,41242.0,41234.0,0.05]
[1646403672702,0.31934457,41242.0,41236.0,0.060653]
[1646403672902,0.1,41246.0,41236.0,0.12130765]
[1646403673204,0.27256199,41244.0,41236.0,0.060653]
[1646403673451,0.27256199,41244.0,41233.0,0.12130855]
[1646403673649,0.0511,41254.0,41235.0,0.060653]
[1646403673850,0.0511,41254.0,41237.0,0.29659283]
[1646403674051,0.0511,41254.0,41240.0,0.366947]
[1646403674052,0.23,41242.0,41240.0,0.366947]
[1646403674252,0.0511,41254.0,41240.0,1.39494933]
[1646403674448,0.0511,41254.0,41241.0,0.360627]
[1646403674650,0.0511,41254.0,41242.0,0.02423]
[1646403674851,0.0511,41254.0,41241.0,0.410627]
[1646403675248,0.0511,41254.0,41241.0,0.531881]
[1646403675649,0.0511,41254.0,41242.0,0.06062941]
[1646403675850,0.27265591,41252.0,41242.0,0.06062941]
[1646403676052,0.0511,41254.0,41242.0,0.06062941]
[1646403677285,0.0511,41254.0,41243.0,0.060634]
[1646403677685,0.0511,41254.0,41244.0,0.427574]
[1646403677881,0.0511,41254.0,41246.0,0.060627]
[1646403678081,0.0511,41254.0,41246.0,0.24250919]
[1646403678383,0.001,41256.0,41246.0,0.24250919]
[1646403678384,0.001,41256.0,41248.0,1.4]
[1646403678688,0.02508632,41258.0,41249.0,1.766947]
[1646403678882,0.02508632,41258.0,41249.0,1.4]
[1646403679084,0.02508632,41258.0,41251.0,0.06060873]
[1646403679284,0.3,41274.0,41253.0,0.02423]
[1646403679285,0.35,41274.0,41253.0,0.02423]
[1646403679485,0.3,41273.0,41257.0,0.02423]
[1646403679685,0.3,41272.0,41257.0,0.060613]
[1646403679883,0.3,41272.0,41257.0,0.110613]
[1646403680084,0.21575218,41268.0,41258.0,0.17122395]
[1646403680484,0.0021,41268.0,41258.0,0.17122395]
[1646403680685,0.23322363,41264.0,41258.0,0.17122395]
[1646403680936,0.0021,41268.0,41258.0,0.17122395]
[1646403681539,0.0021,41268.0,41259.0,0.06061]
[1646403681736,0.0021,41268.0,41258.0,0.12122395]
[1646403681938,0.27109543,41265.0,41258.0,0.12122395]
[1646403682537,0.27109543,41265.0,41255.0,0.12123024]
[1646403683538,0.27109543,41265.0,41255.0,0.17123024]
[1646403683739,0.27109543,41265.0,41255.0,0.19546024]
[1646403683943,0.27109543,41265.0,41255.0,0.23184324]
[1646403684139,0.27109543,41265.0,41255.0,0.29245224]
[1646403684336,0.27109543,41265.0,41255.0,0.17123024]
[1646403684581,0.27109543,41265.0,41255.0,0.47123024]
[1646403684781,0.27109543,41265.0,41255.0,0.17123024]
[1646403685281,0.27109543,41265.0,41256.0,0.060617]
[1646403685484,0.0021,41268.0,41257.0,0.060613]
[1646403685882,0.19080472,41267.0,41257.0,0.060613]
[1646403686082,0.19080472,41267.0,41255.0,0.35123024]
[1646403686285,0.19080472,41267.0,41258.0,0.06061492]
[1646403686487,0.0021,41268.0,41258.0,0.06061492]
[1646403687283,0.32547648,41264.0,41259.0,0.06061]
[1646403687484,0.32547648,41264.0,41258.0,0.06061492]
[1646403687683,0.5902982,41264.0,41258.0,0.06061492]
[1646403688368,0.32547648,41264.0,41258.0,0.06061492]
[1646403688857,0.32547648,41264.0,41255.0,0.35123024]
[1646403688858,0.1,41263.0,41255.0,0.35123024]
[1646403689065,0.1,41263.0,41255.0,0.23]
[1646403689066,0.21839458,41257.0,41255.0,0.23]
[1646403689257,0.1,41263.0,41255.0,0.23]
[1646403689457,0.21773446,41256.0,41255.0,0.23]
[1646403689657,0.46810576,41256.0,41255.0,0.23]
[1646403690061,0.56810576,41256.0,41255.0,0.23]
[1646403690258,0.62755117,41256.0,41255.0,0.23]
[1646403690459,1.30380576,41256.0,41255.0,0.23]
[1646403690658,0.72428585,41256.0,41255.0,0.23]
[1646403690859,0.31773446,41256.0,41255.0,0.23]
[1646403691060,0.0409,41267.0,41255.0,0.23]
[1646403691061,0.1,41259.0,41255.0,0.23]
[1646403691259,0.3,41265.0,41255.0,0.23]
[1646403691663,0.0533709,41261.0,41255.0,0.23]
[1646403691860,0.14,41257.0,41255.0,0.23]
[1646403692091,0.0533709,41261.0,41255.0,0.23]
[1646403692092,0.44,41256.0,41255.0,0.23]
[1646403692290,0.54,41256.0,41255.0,0.23]
[1646403692688,0.83399656,41256.0,41255.0,0.23]
[1646403692888,0.24,41256.0,41255.0,0.23]
[1646403693289,0.1,41259.0,41255.0,0.23]
[1646403693690,0.7378,41268.0,41255.0,0.30486]
[1646403693891,0.27761352,41264.0,41255.0,0.30486]
[1646403694090,0.27761352,41264.0,41256.0,0.060621]
[1646403694690,0.53789629,41264.0,41255.0,0.47]
[1646403694897,0.3,41263.0,41255.0,0.47]
[1646403695092,0.1,41263.0,41255.0,0.47]
[1646403696247,0.1,41267.0,41255.0,0.630621]
[1646403696545,0.17119234,41265.0,41255.0,0.57]
[1646403696950,0.1,41267.0,41255.0,0.47]
[1646403697148,0.3152831,41264.0,41255.0,0.47]
[1646403697345,0.0681257,41262.0,41255.0,0.47]
[1646403697645,0.1,41263.0,41255.0,0.47]
[1646403697847,0.17762072,41259.0,41255.0,0.47]
[1646403698046,0.1,41263.0,41255.0,0.47]
[1646403698846,0.1,41267.0,41258.0,0.060621]
[1646403699248,0.0021,41268.0,41258.0,0.060621]
[1646403699682,0.23837333,41267.0,41258.0,0.060621]
[1646403699882,0.23837333,41267.0,41255.0,0.52]
[1646403700784,0.0021,41268.0,41258.0,0.06061917]
[1646403701187,0.0021,41268.0,41260.0,0.12121668]
[1646403701383,0.0021,41268.0,41260.0,0.18182868]
[1646403701588,0.0021,41268.0,41261.0,0.05]
[1646403701784,0.29935519,41268.0,41259.0,0.121224]
[1646403701989,0.29935519,41268.0,41255.0,0.47]
[1646403702188,0.39935519,41268.0,41259.0,0.06062]
[1646403702885,0.1,41267.0,41259.0,0.06062]
[1646403703084,0.1,41267.0,41255.0,0.42124]
[1646403703336,0.34880066,41267.0,41259.0,0.12123842]
[1646403703536,0.34880066,41267.0,41259.0,0.17123842]
[1646403703736,0.1,41267.0,41259.0,0.17123842]
[1646403703937,0.1,41267.0,41259.0,0.40123842]
[1646403704137,0.0021,41268.0,41259.0,0.52246942]
[1646403704338,0.0021,41268.0,41262.0,0.060614]
[1646403704543,0.0021,41268.0,41263.0,0.12122159]
[1646403704739,0.0021,41268.0,41263.0,0.17122159]
[1646403705438,0.0021,41268.0,41263.0,0.171219]
[1646403705639,0.18617778,41268.0,41263.0,0.05]
[1646403705839,0.0021,41268.0,41263.0,0.05]
[1646403706038,0.0021,41268.0,41260.0,0.05]
[1646403706236,0.0021,41268.0,41259.0,0.05]
[1646403706438,0.21744824,41267.0,41261.0,0.121233]
[1646403706837,0.1021,41268.0,41262.0,0.05]
[1646403707091,0.1021,41268.0,41257.0,0.303069]
[1646403707290,0.1021,41268.0,41258.0,0.3]
[1646403707487,0.0021,41268.0,41258.0,0.3]
[1646403707887,0.0021,41268.0,41260.0,0.121236]
[1646403708087,0.0021,41268.0,41262.0,0.12123]
[1646403708287,0.0021,41268.0,41262.0,0.17123]
[1646403708489,0.0021,41268.0,41263.0,0.121218]
[1646403708890,0.0021,41268.0,41263.0,0.18183077]
[1646403709189,0.0021,41268.0,41264.0,0.666947]
[1646403709390,0.02865014,41277.0,41265.0,0.8]
[1646403709591,0.02865014,41277.0,41265.0,0.171202]
[1646403709788,0.02865014,41277.0,41267.0,0.121208]
[1646403709989,0.02865014,41277.0,41268.0,0.05]
[1646403710591,0.02865014,41277.0,41268.0,0.35]
[1646403710846,0.02865014,41277.0,41270.0,0.060604]
[1646403711044,0.02865014,41277.0,41271.0,0.421188]
[1646403711239,0.02865014,41277.0,41272.0,0.121184]
[1646403711443,0.005,41279.0,41272.0,1.59989713]
[1646403711641,0.001,41285.0,41280.0,0.24972922]
[1646403711843,0.001,41285.0,41282.0,0.084803]
[1646403712040,0.001,41285.0,41284.0,0.02423]
[1646403712245,0.03031396,41295.0,41287.0,1.4]
[1646403712443,0.001,41297.0,41290.0,0.06055269]
[1646403712641,0.001,41297.0,41291.0,0.666947]
[1646403712841,0.001,41297.0,41292.0,0.110562]
[1646403713042,0.0021,41303.0,41293.0,0.32423]
[1646403713043,0.0001,41303.0,41293.0,0.32423]
[1646403713245,0.0001,41303.0,41293.0,0.40059951]
[1646403713449,0.0001,41303.0,41297.0,0.366947]
[1646403713647,0.0001,41303.0,41298.0,0.3]
[1646403713844,0.01,41309.0,41299.0,0.084775]
[1646403714047,0.07887778,41314.0,41312.0,0.24976777]
[1646403714348,0.02887778,41314.0,41313.0,0.37988736]
[1646403714598,0.02887778,41314.0,41312.0,0.11053501]
[1646403714902,0.02887778,41314.0,41312.0,0.05]
[1646403715098,0.02887778,41314.0,41313.0,0.3]
[1646403715298,0.02887778,41314.0,41312.0,0.110528]
[1646403715898,0.02887778,41314.0,41313.0,0.666947]
[1646403716100,0.02887778,41314.0,41313.0,0.366947]
[1646403716299,0.02887778,41314.0,41313.0,0.3]
[1646403716497,0.02887778,41314.0,41312.0,0.17106223]
[1646403716698,0.02777778,41314.0,41312.0,0.17106223]
[1646403716900,0.02777778,41314.0,41313.0,0.05]
[1646403717102,0.001,41319.0,41314.0,0.01080543]
[1646403717299,0.2718612,41318.0,41316.0,0.060534]
[1646403717603,0.001,41319.0,41316.0,0.12106813]
[1646403717800,0.001,41319.0,41317.0,0.35]
[1646403717801,0.0007081,41319.0,41317.0,0.35]
[1646403718003,0.0007081,41319.0,41318.0,0.42104378]
[1646403718201,0.0011,41336.0,41319.0,1.516947]
[1646403718445,0.0011,41336.0,41323.0,0.02423]
[1646403718643,0.0011,41336.0,41323.0,0.3]
[1646403718842,0.0011,41336.0,41323.0,0.35]
[1646403719644,0.24553848,41331.0,41323.0,0.05]
[1646403719843,0.0011,41336.0,41323.0,0.05]
[1646403720250,0.0011,41336.0,41325.0,0.060514]
[1646403720445,0.0011,41336.0,41326.0,0.06052]
[1646403720648,0.0592501,41330.0,41324.0,0.121028]
[1646403720851,0.36236616,41330.0,41314.0,0.486]
[1646403721049,0.41236616,41330.0,41313.0,0.181595]
[1646403721247,0.15,41324.0,41310.0,0.25]
[1646403721449,0.15,41324.0,41313.0,0.060546]
[1646403721450,0.8857,41324.0,41313.0,0.060546]
[1646403721945,0.29512887,41329.0,41313.0,0.060546]
[1646403721946,0.1,41323.0,41313.0,0.060546]
[1646403722387,0.8357,41323.0,41313.0,0.060546]
[1646403722590,0.8357,41323.0,41313.0,0.121088]
[1646403722793,0.05874147,41317.0,41313.0,0.121088]
[1646403722987,0.2795754,41314.0,41313.0,0.121088]
[1646403723390,1.1552754,41314.0,41310.0,0.25]
[1646403723587,0.283743,41313.0,41310.0,0.25]
[1646403723789,0.383743,41313.0,41310.0,0.25]
[1646403724389,0.383743,41313.0,41296.0,0.818629]
[1646403724390,0.15,41311.0,41296.0,0.363329]
[1646403724588,0.05468911,41306.0,41296.0,0.363329]
[1646403724790,0.05468911,41306.0,41285.0,0.121123]
[1646403724791,0.07020725,41299.0,41290.0,0.121146]
[1646403724990,1.20557308,41305.0,41292.0,0.060578]
[1646403724991,0.44564308,41305.0,41292.0,0.060578]
[1646403725193,0.05,41307.0,41292.0,0.060578]
[1646403725395,0.05,41307.0,41293.0,0.3]
[1646403725396,0.1,41304.0,41293.0,0.3]
[1646403725589,0.44652765,41321.0,41293.0,0.3]
[1646403725590,0.7357,41318.0,41298.0,0.12]
[1646403725834,0.7357,41318.0,41301.0,0.12]
[1646403725835,0.05,41315.0,41301.0,0.12]
[1646403726136,0.79457815,41317.0,41301.0,0.03826]
[1646403726534,0.31896418,41312.0,41301.0,0.12109517]
[1646403726734,0.31896418,41312.0,41302.0,0.05]
[1646403726934,0.27732131,41311.0,41302.0,0.05]
[1646403727135,0.31896418,41312.0,41305.0,0.121089]
[1646403727535,0.05887815,41317.0,41306.0,0.110546]
[1646403727736,0.05887815,41317.0,41309.0,0.060547]
[1646403727737,0.8357,41317.0,41309.0,0.060547]
[1646403728039,0.24848864,41312.0,41306.0,0.05]
[1646403728437,0.55118872,41315.0,41306.0,0.05]
[1646403728636,0.25118872,41315.0,41306.0,0.17]
[1646403728837,0.1,41316.0,41306.0,0.17]
[1646403729237,0.1,41316.0,41309.0,0.060546]
[1646403729437,0.27323707,41313.0,41309.0,0.060546]
[1646403729694,0.26028845,41312.0,41309.0,0.060546]
[1646403731295,0.26028845,41312.0,41310.0,0.060548]
[1646403732496,0.26028845,41312.0,41309.0,0.110546]
[1646403732695,0.26028845,41312.0,41309.0,0.060546]
[1646403733095,0.99598845,41312.0,41309.0,0.060546]
[1646403733349,0.8757,41310.0,41305.0,0.121092]
[1646403733542,0.07044625,41304.0,41291.0,0.12]
[1646403733739,0.7357,41303.0,41291.0,0.12]
[1646403733940,0.25726249,41295.0,41292.0,0.121145]
[1646403734138,1.1357,41302.0,41298.0,0.52918865]
[1646403734439,0.8357,41302.0,41298.0,0.52918865]
[1646403734638,1.06542736,41299.0,41298.0,0.52918865]
[1646403734840,1.46542736,41299.0,41298.0,0.52918865]
[1646403735043,1.16542736,41299.0,41298.0,0.52918865]
[1646403735239,1.37320652,41299.0,41298.0,0.52918865]
[1646403735438,1.5656826,41299.0,41298.0,0.52918865]
[1646403735640,0.7357,41297.0,41281.0,0.4799]
[1646403735847,0.7357,41295.0,41281.0,0.4799]
[1646403736041,0.7357,41295.0,41285.0,0.060586]
[1646403736343,0.1,41294.0,41285.0,0.060586]
[1646403736547,0.02423,41299.0,41287.0,0.18057426]
[1646403736548,0.1,41299.0,41287.0,0.18057426]
[1646403736743,0.1,41298.0,41288.0,0.3]
[1646403736942,0.1,41298.0,41287.0,0.12]
[1646403737184,0.12423,41298.0,41279.0,0.121146]
[1646403737379,0.12423,41298.0,41278.0,0.4]
[1646403737380,0.21358322,41296.0,41278.0,0.4]
[1646403737580,0.80006119,41297.0,41285.0,0.12114725]
[1646403737781,0.80006119,41297.0,41285.0,0.05]
[1646403737980,0.7357,41297.0,41285.0,0.05]
[1646403738279,0.21290628,41289.0,41285.0,0.05]
[1646403738483,0.41144066,41289.0,41285.0,0.05]
[1646403738679,0.41144066,41289.0,41284.0,0.242314]
[1646403738680,0.21290628,41289.0,41284.0,0.242314]
[1646403738881,0.21290628,41289.0,41277.0,0.12]
[1646403739080,0.05314925,41286.0,41277.0,0.12]
[1646403739283,0.21290628,41289.0,41277.0,0.12]
[1646403739480,0.2875549,41283.0,41272.0,0.593589]
[1646403739681,1.0357,41282.0,41272.0,0.060604]
[1646403739881,0.3,41282.0,41272.0,0.121206]
[1646403740181,0.1,41281.0,41272.0,0.119797]
[1646403740381,0.3,41282.0,41272.0,0.119797]
[1646403740830,0.20408668,41281.0,41272.0,0.1803951]
[1646403741036,0.4,41284.0,41272.0,0.119797]
[1646403742034,0.1,41284.0,41274.0,0.12]
[1646403742234,2.2,41285.0,41278.0,0.060587]
[1646403742435,2.2,41285.0,41279.0,0.366947]
[1646403742634,2.2,41285.0,41278.0,0.060587]
[1646403742832,2.2,41285.0,41276.0,0.22]
[1646403743032,0.1823068,41284.0,41276.0,0.1]
[1646403743234,2.2,41285.0,41276.0,0.05]
[1646403743735,2.2,41285.0,41275.0,0.171182]
[1646403743933,2.2,41285.0,41276.0,0.05]
[1646403744135,0.22466687,41282.0,41276.0,0.12]
[1646403744785,0.22466687,41282.0,41275.0,0.05]
[1646403745185,0.22466687,41282.0,41273.0,0.05]
[1646403745786,0.22466687,41282.0,41274.0,0.060604]
[1646403745986,0.22466687,41282.0,41274.0,0.180604]
[1646403746487,0.22466687,41282.0,41274.0,0.060604]
[1646403746888,0.22466687,41282.0,41274.0,0.12]
[1646403747088,0.96036687,41282.0,41273.0,0.1106]
[1646403747298,0.7357,41280.0,41270.0,0.123299]
[1646403747691,0.4,41281.0,41270.0,0.0021]
[1646403747692,0.26703817,41271.0,41270.0,0.0021]
[1646403748091,0.19465027,41272.0,41270.0,0.0021]
[1646403748546,0.3823378,41275.0,41270.0,0.0021]
[1646403749147,0.26745296,41274.0,41270.0,0.0021]
[1646403749348,0.36745296,41274.0,41270.0,0.0021]
[1646403749546,0.1720217,41272.0,41270.0,0.0021]
[1646403749747,0.1,41274.0,41270.0,0.0021]
[1646403749946,0.1,41274.0,41270.0,0.062711]
[1646403750547,0.002,41277.0,41270.0,0.062711]
[1646403751148,0.1,41282.0,41271.0,0.121196]
[1646403751149,0.8357,41282.0,41271.0,0.121196]
[1646403751348,0.3,41283.0,41273.0,0.060605]
[1646403751654,2.2,41285.0,41274.0,0.121197]
[1646403751849,2.2,41285.0,41284.0,0.12]
[1646403752093,2.2,41285.0,41284.0,0.536947]
[1646403752290,1.48326794,41285.0,41284.0,0.611177]
[1646403752489,0.002,41288.0,41284.0,0.611177]
[1646403752490,0.002,41288.0,41287.0,0.02423]
[1646403752691,0.05,41299.0,41289.0,0.391177]
[1646403752893,0.05,41310.0,41299.0,0.366947]
[1646403753090,0.3,41316.0,41299.0,0.366947]
[1646403753091,0.3,41316.0,41301.0,0.0605489]
[1646403753289,0.3,41319.0,41305.0,0.12]
[1646403753490,0.001,41323.0,41313.0,0.12]
[1646403753491,0.051,41323.0,41313.0,0.12]
[1646403753690,0.0481,41323.0,41314.0,0.8]
[1646403753889,0.0481,41323.0,41317.0,0.12]
[1646403754093,0.001,41323.0,41317.0,0.12]
[1646403754296,0.001,41323.0,41320.0,0.12]
[1646403754691,0.0022,41327.0,41321.0,0.366947]
[1646403754692,0.0015,41327.0,41321.0,0.366947]
[1646403754891,0.0015,41327.0,41323.0,0.12]
[1646403755292,0.0015,41327.0,41323.0,0.1689]
[1646403755695,0.0015,41327.0,41323.0,0.0489]
[1646403755933,0.2345511,41327.0,41323.0,0.1689]
[1646403756132,0.0015,41327.0,41323.0,0.1689]
[1646403756533,0.0015,41327.0,41323.0,0.0489]
[1646403756938,0.0015,41327.0,41323.0,0.289957]
[1646403757632,0.0015,41327.0,41324.0,0.12]
[1646403757835,0.0011,41327.0,41324.0,0.12]
[1646403758038,0.0273416,41332.0,41325.0,0.72746484]
[1646403758234,0.0273416,41332.0,41331.0,0.12]
[1646403758437,0.0273416,41332.0,41331.0,0.486947]
[1646403758633,0.0111,41339.0,41331.0,0.17]
[1646403758933,0.0111,41339.0,41334.0,0.18050481]
[1646403758934,0.32765226,41339.0,41334.0,0.18050481]
[1646403759138,0.0111,41339.0,41334.0,0.23050481]
[1646403759338,0.0111,41339.0,41334.0,0.29100981]
[1646403759599,0.0489,41343.0,41335.0,1.4]
[1646403759800,0.32690542,41351.0,41342.0,0.12]
[1646403759801,0.02690542,41351.0,41342.0,0.12]
[1646403759997,0.02300542,41351.0,41343.0,0.366947]
[1646403760197,0.02300542,41351.0,41345.0,0.366947]
[1646403760401,0.00024206,41347.0,41345.0,0.366947]
[1646403760596,0.00024203,41346.0,41345.0,0.416947]
[1646403760997,0.02300542,41351.0,41346.0,1.4]
[1646403761398,0.02300542,41351.0,41348.0,0.12]
[1646403761598,0.02300542,41351.0,41348.0,0.180485]
[1646403761797,0.02300542,41351.0,41349.0,0.3]
[1646403762000,0.02420018,41350.0,41348.0,0.29096608]
[1646403762307,0.02300542,41351.0,41349.0,0.477433]
[1646403762519,0.02300542,41351.0,41350.0,0.366947]
[1646403762699,0.02300542,41351.0,41349.0,0.110486]
[1646403763354,0.0032,41357.0,41352.0,0.02423]
[1646403763355,0.17304,41356.0,41352.0,0.02423]
[1646403763549,0.0511,41367.0,41356.0,1.4]
[1646403763747,0.0011,41367.0,41358.0,0.060458]
[1646403763944,0.0011,41374.0,41364.0,0.12]
[1646403763945,0.03676924,41369.0,41364.0,0.12]
[1646403764347,0.03676924,41369.0,41368.0,0.12]
[1646403764546,0.03676924,41369.0,41368.0,0.17]
[1646403764751,0.0011,41374.0,41369.0,0.916947]
[1646403764950,0.0011,41374.0,41370.0,0.366947]
[1646403765149,0.0011,41374.0,41368.0,0.17]
[1646403766147,0.0011,41374.0,41369.0,0.3]
[1646403766349,0.0011,41374.0,41369.0,0.06045]
[1646403766547,0.0011,41374.0,41369.0,0.36045]
[1646403766749,0.0011,41374.0,41369.0,0.06045]
[1646403766949,0.0011,41374.0,41372.0,0.12]
[1646403767410,0.0011,41374.0,41369.0,0.181349]
[1646403767615,0.0011,41374.0,41371.0,0.12]
[1646403767810,0.0011,41374.0,41369.0,0.481349]
[1646403768010,0.0011,41374.0,41371.0,0.12]
[1646403768213,0.0011,41374.0,41371.0,0.05]
[1646403768615,0.0011,41374.0,41369.0,0.231349]
[1646403769314,0.0011,41374.0,41369.0,0.29179932]
[1646403769511,0.0011,41374.0,41369.0,0.231349]
[1646403770121,0.2624491,41378.0,41369.0,0.231349]
[1646403770513,0.001,41381.0,41369.0,0.231349]
[1646403770716,0.001,41381.0,41375.0,0.12]
[1646403770944,0.001,41381.0,41378.0,0.366947]
[1646403771138,0.00050787,41379.0,41378.0,0.416947]
[1646403771339,0.001,41381.0,41378.0,0.536947]
[1646403771740,0.001,41381.0,41378.0,0.05]
[1646403771939,0.001,41381.0,41378.0,0.110445]
[1646403772140,0.001,41381.0,41379.0,0.366947]
[1646403772342,0.02603306,41388.0,41380.0,0.366947]
[1646403772543,0.02603306,41388.0,41384.0,0.12]
[1646403772745,0.02603306,41388.0,41384.0,0.180431]
[1646403772939,0.00725496,41385.0,41384.0,0.060431]
[1646403773142,0.00725496,41385.0,41373.0,0.003]
[1646403773342,0.00725496,41385.0,41372.0,0.18132]
[1646403773343,0.29166091,41373.0,41372.0,0.18132]
[1646403773541,0.29166091,41373.0,41370.0,0.2]
[1646403773741,0.0011,41389.0,41369.0,0.060457]
[1646403773942,0.0011,41389.0,41367.0,0.120922]
[1646403774140,0.39,41385.0,41371.0,0.060458]
[1646403774598,0.0011,41389.0,41376.0,0.12]
[1646403774794,0.27096105,41386.0,41378.0,0.120867]
[1646403775195,0.27096105,41386.0,41379.0,0.05]
[1646403775396,0.27096105,41386.0,41379.0,0.110434]
[1646403775593,0.48058869,41386.0,41379.0,0.110434]
[1646403775795,0.0011,41389.0,41379.0,0.110434]
[1646403776097,0.0011,41389.0,41383.0,0.0604312]
[1646403776499,0.02,41390.0,41386.0,1.15]